fUST/lending_fUST_20250506
["ID","MTS","AMOUNT","RATE_DAILY","PERIOD"]
[360008084,1746477069102,-3350.06,0.00034246,2]
[360008085,1746477069111,-843.52,0.00034246,8]
[360008086,1746477069121,-400.0,0.00034246,8]
[360008087,1746477069130,-400.0,0.00034246,8]
[360008088,1746477069140,-400.0,0.00034246,8]
[360008089,1746477069149,-400.0,0.00034246,8]
[360008090,1746477069158,-400.0,0.00034246,8]
[360008091,1746477069167,-491.06,0.00034246,8]
[360008092,1746477069177,-400.0,0.00034246,8]
[360008093,1746477069186,-749.47,0.00034246,8]
[360008094,1746477069197,-417.03,0.00034246,8]
[360008095,1746477069208,-1603.07,0.00034246,8]
[360008096,1746477069219,-400.0,0.00034246,8]
[360008097,1746477069228,-400.0,0.00034246,8]
[360008098,1746477069240,-400.0,0.00034246,8]
[360008099,1746477069250,-180.8335701,0.00034246,8]
[360008100,1746477069260,-1004.78,0.00034246,8]
[360008101,1746477069270,-441.29,0.00034246,8]
[360008102,1746477069281,-400.0,0.00034246,8]
[360008103,1746477069383,-334.86117381,0.00034246,8]
[360008104,1746477069393,-1250.72,0.00034246,8]
[360008105,1746477069403,-400.0,0.00034246,8]
[360008106,1746477069413,-535.58,0.00034246,8]
[360008107,1746477069422,-400.0,0.00034246,8]
[360008108,1746477069432,-342.20262717,0.00034246,8]
[360008109,1746477069442,-606.68,0.00034246,8]
[360008110,1746477069452,-941.65,0.00034246,8]
[360008111,1746477069462,-553.65,0.00034246,8]
[360008112,1746477069472,-630.89,0.00034246,8]
[360008113,1746477069481,-992.75,0.00034246,8]
[360008114,1746477069491,-400.0,0.00034246,8]
[360008115,1746477069500,-400.0,0.00034246,8]
[360008116,1746477069509,-400.0,0.00034246,8]
[360008117,1746477069518,-1225.91,0.00034246,8]
[360008118,1746477069530,-400.0,0.00034246,8]
[360008119,1746477069540,-400.0,0.00034246,8]
[360008120,1746477069549,-407.11,0.00034246,8]
[360008121,1746477069558,-400.0,0.00034246,8]
[360008122,1746477069568,-400.0,0.00034246,8]
[360008123,1746477069578,-400.0,0.00034246,8]
[360008124,1746477069588,-400.0,0.00034246,8]
[360008125,1746477069598,-224.62325569,0.00034246,8]
[360008126,1746477069609,-400.0,0.00034246,8]
[360008127,1746477069618,-3599.95,0.00034246,8]
[360008128,1746477069628,-2897.28,0.00034246,8]
[360008129,1746477069637,-481.35,0.00034246,8]
[360008130,1746477069646,-2205.69,0.00034246,8]
[360008131,1746477069656,-3492.57,0.00034246,8]
[360008132,1746477069665,-2970.08,0.00034246,8]
[360008133,1746477069675,-819.48,0.00034246,8]
[360008134,1746477069686,-1931.64,0.00034246,8]
[360008135,1746477069695,-400.0,0.00034246,8]
[360008136,1746477069704,-400.0,0.00034246,8]
[360008137,1746477069713,-400.0,0.00034246,8]
[360008138,1746477069723,-400.0,0.00034246,8]
[360008139,1746477069732,-438.54,0.00034246,8]
[360008140,1746477069742,-1111.28,0.00034246,8]
[360008141,1746477069751,-884.25,0.00034246,8]
[360008142,1746477069761,-400.0,0.00034246,8]
[360008143,1746477069771,-409.03288481,0.00034246,8]
[360008144,1746477069780,-400.0,0.00034246,8]
[360008145,1746477069790,-400.0,0.00034246,8]
[360008146,1746477069799,-400.0,0.00034246,8]
[360008147,1746477069809,-3000.85,0.00034246,8]
[360008148,1746477069818,-824.62,0.00034246,8]
[360008149,1746477069828,-400.0,0.00034246,8]
[360008150,1746477069837,-455.62,0.00034246,8]
[360008151,1746477069847,-507.71144657,0.00034246,8]
[360008152,1746477069857,-476.47,0.00034246,8]
[360008153,1746477069866,-535.98960538,0.00034246,8]
[360008154,1746477070152,-724.64039462,0.00034246,8]
[360008155,1746477070162,-9929.17,0.00034246,8]
[360008156,1746477070171,-2404.52,0.00034246,8]
[360008157,1746477070182,-583.91,0.00034246,8]
[360008158,1746477070192,-400.0,0.00034246,8]
[360008159,1746477070201,-1366.67,0.00034246,8]
[360008160,1746477070211,-804.65,0.00034246,8]
[360008161,1746477070221,-2610.48,0.00034246,8]
[360008162,1746477070230,-1582.3,0.00034246,8]
[360008163,1746477070240,-400.0,0.00034246,8]
[360008164,1746477070249,-400.0,0.00034246,8]
[360008165,1746477070259,-400.0,0.00034246,8]
[360008166,1746477070268,-400.0,0.00034246,8]
[360008167,1746477070278,-1810.86,0.00034246,8]
[360008168,1746477070288,-400.0,0.00034246,8]
[360008169,1746477070297,-8390.32,0.00034246,8]
[360008170,1746477070307,-400.0,0.00034246,8]
[360008171,1746477070316,-400.0,0.00034246,8]
[360008172,1746477070326,-644.41,0.00034246,8]
[360008173,1746477070335,-546.08981405,0.00034246,8]
[360008174,1746477070345,-400.0,0.00034246,8]
[360008175,1746477070355,-2005.57,0.00034246,8]
[360008176,1746477070365,-433.92,0.00034246,8]
[360008177,1746477070375,-400.0,0.00034246,8]
[360008178,1746477070384,-400.0,0.00034246,8]
[360008179,1746477070394,-487.64,0.00034246,8]
[360008180,1746477070404,-918.96,0.00034246,8]
[360008181,1746477070413,-400.0,0.00034246,8]
[360008182,1746477070423,-3259.27,0.00034246,8]
[360008183,1746477070433,-400.0,0.00034246,8]
[360008184,1746477070442,-2006.72,0.00034246,8]
[360008185,1746477070452,-497.93,0.00034246,8]
[360008186,1746477070462,-1436.28,0.00034246,8]
[360008187,1746477070471,-400.0,0.00034246,8]
[360008188,1746477070481,-469.87,0.00034246,8]
[360008189,1746477070496,-400.0,0.00034246,8]
[360008190,1746477070507,-1090.39,0.00034246,8]
[360008191,1746477070517,-400.0,0.00034246,8]
[360008192,1746477070530,-4062.47,0.00034246,8]
[360008193,1746477070539,-1114.33,0.00034246,8]
[360008194,1746477070548,-400.0,0.00034246,8]
[360008195,1746477070558,-2077.09,0.00034246,8]
[360008196,1746477070568,-400.0,0.00034246,8]
[360008197,1746477070577,-1456.15,0.00034246,8]
[360008198,1746477070587,-546.39,0.00034246,8]
[360008199,1746477070597,-400.0,0.00034246,8]
[360008200,1746477070607,-4476.54,0.00034246,8]
[360008201,1746477070618,-638.56,0.00034246,8]
[360008202,1746477070627,-400.0,0.00034246,8]
[360008203,1746477070639,-683.64,0.00034246,8]
[360008204,1746477070749,-400.0,0.00034246,8]
[360008205,1746477070759,-400.0,0.00034246,8]
[360008206,1746477070769,-619.75,0.00034246,8]
[360008207,1746477070779,-400.0,0.00034246,8]
[360008208,1746477070788,-400.0,0.00034246,8]
[360008209,1746477070798,-400.0,0.00034246,8]
[360008210,1746477070807,-526.54,0.00034246,8]
[360008211,1746477070817,-758.85,0.00034246,8]
[360008212,1746477070826,-24521.13,0.00034246,8]
[360008213,1746477070836,-416.76269904,0.00034246,8]
[360008214,1746477070845,-400.0,0.00034246,8]
[360008215,1746477070854,-400.0,0.00034246,8]
[360008216,1746477070864,-400.0,0.00034246,8]
[360008217,1746477070873,-1075.31,0.00034246,8]
[360008218,1746477070883,-400.0,0.00034246,8]
[360008219,1746477070892,-989.84,0.00034246,8]
[360008220,1746477070902,-400.0,0.00034246,8]
[360008221,1746477070911,-2581.34,0.00034246,8]
[360008222,1746477070920,-498.57,0.00034246,8]
[360008223,1746477070929,-562.95,0.00034246,8]
[360008224,1746477070939,-400.0,0.00034246,8]
[360008225,1746477070948,-563.56,0.00034246,8]
[360008226,1746477070960,-400.0,0.00034246,8]
[360008227,1746477070970,-2005.02,0.00034246,8]
[360008228,1746477070980,-400.0,0.00034246,8]
[360008229,1746477070990,-1801.43,0.00034246,8]
[360008230,1746477071000,-1461.40216048,0.00034246,8]
[360008231,1746477072241,-11.0461434,0.000329,3]
[360008232,1746477072671,-148.9538566,0.000329,3]
[360008233,1746477072690,-400.0,0.0003315,8]
[360008234,1746477072709,-400.0,0.00033424,8]
[360008235,1746477072724,-400.0,0.00033698,8]
[360008236,1746477072734,-400.0,0.00033972,8]
[360008237,1746477072744,-7635.80783952,0.00034246,8]
[360008238,1746477072753,-3028.71,0.00034246,8]
[360008239,1746477072763,-400.0,0.00034246,8]
[360008240,1746477072772,-1797.43,0.00034246,8]
[360008241,1746477072782,-531.52,0.00034246,8]
[360008242,1746477072791,-6864.69,0.00034246,8]
[360008243,1746477072800,-400.0,0.00034246,8]
[360008244,1746477072810,-400.0,0.00034246,8]
[360008245,1746477072819,-4586.98,0.00034246,8]
[360008246,1746477072829,-1501.28,0.00034246,8]
[360008247,1746477072838,-400.0,0.00034246,8]
[360008248,1746477072848,-2940.89,0.00034246,8]
[360008249,1746477072858,-2118.91383164,0.00034246,8]
[360008250,1746477072912,-38.93384855,0.00032876,8]
[360008251,1746477073286,-0.08534795,0.00032876,8]
[360008252,1746477073299,-360.9808035,0.00032876,8]
[360008253,1746477073310,-1444.25616836,0.00034246,8]
[360008254,1746477073320,-523.85,0.00034246,8]
[360008255,1746477073331,-400.0,0.00034246,8]
[360008256,1746477073340,-400.0,0.00034246,2]
[360008257,1746477073349,-1429.01,0.00034246,8]
[360008258,1746477073359,-726.2,0.00034246,8]
[360008259,1746477073368,-400.0,0.00034246,8]
[360008260,1746477073378,-494.32,0.00034246,8]
[360008261,1746477073388,-400.0,0.00034246,8]
[360008262,1746477073397,-400.0,0.00034246,2]
[360008263,1746477073408,-2667.55,0.00034246,8]
[360008264,1746477073418,-400.0,0.00034246,8]
[360008265,1746477073428,-152.0,0.00034268,5]
[360008266,1746477073438,-500.0,0.00034273,5]
[360008267,1746477073448,-378.06241418,0.00034292,2]
[360008268,1746477073457,-5000.0,0.00034416,2]
[360008269,1746477073466,-1817.33,0.000345,30]
[360008270,1746477073475,-250.0,0.000345,14]
[360008271,1746477073484,-250.0,0.000345,14]
[360008272,1746477073494,-250.0,0.000345,14]
[360008273,1746477073503,-261.1,0.000345,14]
[360008274,1746477073512,-4088.24,0.000345,7]
[360008275,1746477073522,-6900.56681293,0.000345,30]
[360008276,1746477073537,-1894.43318707,0.000345,30]
[360008277,1746477073547,-1704.42762934,0.000345,30]
[360008278,1746477073557,-1954.51,0.0003452,8]
[360008279,1746477073566,-719.2,0.0003452,8]
[360008280,1746477073577,-169.539145,0.0003452,14]
[360008281,1746477073586,-400.0,0.0003452,8]
[360008282,1746477073596,-169.539145,0.0003452,14]
[360008283,1746477073606,-400.0,0.0003452,8]
[360008284,1746477073615,-400.0,0.0003452,8]
[360008285,1746477073626,-253.416103,0.0003452,14]
[360008286,1746477073635,-253.416103,0.0003452,14]
[360008287,1746477073645,-444.85,0.0003452,8]
[360008288,1746477073655,-400.0,0.0003452,8]
[360008289,1746477073665,-676.07,0.0003452,8]
[360008290,1746477073676,-400.0,0.0003452,8]
[360008291,1746477073686,-400.0,0.0003452,8]
[360008292,1746477073696,-631.57,0.0003452,8]
[360008293,1746477073705,-400.0,0.0003452,8]
[360008294,1746477073714,-400.0,0.0003452,8]
[360008295,1746477073724,-454.95,0.0003452,8]
[360008296,1746477073734,-479.7,0.0003452,8]
[360008297,1746477073744,-400.0,0.0003452,8]
[360008298,1746477073753,-400.0,0.0003452,8]
[360008299,1746477073763,-479.36481394,0.0003452,8]
[360008300,1746477073979,-400.0,0.0003452,8]
[360008301,1746477073990,-639.16,0.0003452,8]
[360008302,1746477073999,-164.69418298,0.0003452,8]
[360008303,1746477074009,-400.0,0.0003452,8]
[360008304,1746477074019,-152.886652,0.0003452,14]
[360008305,1746477074028,-507.79,0.0003452,8]
[360008306,1746477074038,-400.0,0.0003452,8]
[360008307,1746477074047,-400.0,0.0003452,8]
[360008308,1746477074058,-400.0,0.0003452,8]
[360008309,1746477074068,-562.08,0.0003452,8]
[360008310,1746477074078,-504.71,0.0003452,8]
[360008311,1746477074088,-458.02,0.0003452,8]
[360008312,1746477074097,-400.0,0.0003452,8]
[360008313,1746477074107,-400.0,0.0003452,8]
[360008314,1746477074117,-400.0,0.0003452,8]
[360008315,1746477074127,-716.28,0.0003452,8]
[360008316,1746477074137,-644.66,0.0003452,8]
[360008317,1746477074147,-400.0,0.0003452,8]
[360008318,1746477074157,-419.45554468,0.0003452,8]
[360008319,1746477074167,-730.5,0.0003452,8]
[360008320,1746477074176,-400.0,0.0003452,8]
[360008321,1746477074187,-500.0,0.0003452,8]
[360008322,1746477074196,-400.0,0.0003452,8]
[360008323,1746477074207,-474.85,0.0003452,8]
[360008324,1746477074216,-400.0,0.0003452,8]
[360008325,1746477074226,-400.0,0.0003452,8]
[360008326,1746477074235,-2439.35,0.0003452,8]
[360008327,1746477074244,-724.61,0.0003452,8]
[360008328,1746477074253,-400.0,0.0003452,8]
[360008329,1746477074263,-706.96,0.0003452,8]
[360008330,1746477074272,-499.18,0.0003452,8]
[360008331,1746477074281,-400.0,0.0003452,8]
[360008332,1746477074290,-400.0,0.0003452,8]
[360008333,1746477074299,-473.77,0.0003452,8]
[360008334,1746477074309,-3364.55,0.0003452,8]
[360008335,1746477074318,-400.0,0.0003452,8]
[360008336,1746477074327,-714.95,0.0003452,8]
[360008337,1746477074337,-400.0,0.0003452,8]
[360008338,1746477074346,-500.0,0.0003452,8]
[360008339,1746477074356,-400.0,0.0003452,8]
[360008340,1746477074365,-400.0,0.0003452,8]
[360008341,1746477074375,-422.23,0.0003452,8]
[360008342,1746477074385,-400.0,0.0003452,8]
[360008343,1746477074395,-400.0,0.0003452,8]
[360008344,1746477074404,-400.0,0.0003452,8]
[360008345,1746477074414,-400.0,0.0003452,8]
[360008346,1746477074423,-715.56,0.0003452,8]
[360008347,1746477074433,-643.8,0.0003452,8]
[360008348,1746477074442,-400.0,0.0003452,8]
[360008349,1746477074452,-400.0,0.0003452,8]
[360008350,1746477074461,-400.0,0.0003452,8]
[360008351,1746477074471,-826.75,0.0003452,8]
[360008352,1746477074482,-1300.61,0.0003452,8]
[360008353,1746477074492,-1570.62,0.0003452,8]
[360008354,1746477074501,-400.0,0.0003452,8]
[360008355,1746477074510,-400.0,0.0003452,8]
[360008356,1746477074520,-923.0,0.0003452,8]
[360008357,1746477074533,-400.0,0.0003452,8]
[360008358,1746477074543,-400.0,0.0003452,8]
[360008359,1746477074553,-400.0,0.0003452,8]
[360008360,1746477074562,-400.0,0.0003452,8]
[360008361,1746477074572,-400.0,0.0003452,8]
[360008362,1746477074581,-407.51,0.0003452,8]
[360008363,1746477074591,-518.33,0.0003452,8]
[360008364,1746477074600,-400.0,0.0003452,8]
[360008365,1746477074610,-400.0,0.0003452,8]
[360008366,1746477074619,-400.0,0.0003452,8]
[360008367,1746477074629,-400.0,0.0003452,8]
[360008368,1746477074639,-850.47,0.0003452,8]
[360008369,1746477074648,-896.58,0.0003452,8]
[360008370,1746477074658,-867.32,0.0003452,8]
[360008371,1746477074668,-1581.59,0.0003452,8]
[360008372,1746477074679,-779.84,0.0003452,8]
[360008373,1746477074689,-412.63,0.0003452,8]
[360008374,1746477074699,-1026.12,0.0003452,8]
[360008375,1746477074709,-963.38,0.0003452,8]
[360008376,1746477074719,-400.0,0.0003452,8]
[360008377,1746477074728,-400.0,0.0003452,8]
[360008378,1746477074738,-400.0,0.0003452,8]
[360008379,1746477074748,-1360.62,0.0003452,8]
[360008380,1746477074758,-400.0,0.0003452,8]
[360008381,1746477074767,-3350.06,0.0003452,2]
[360008382,1746477074776,-843.52,0.0003452,8]
[360008383,1746477074786,-400.0,0.0003452,8]
[360008384,1746477074795,-296.73408255,0.0003452,8]
[360008385,1746477074804,-400.0,0.0003452,8]
[360008386,1746477074814,-400.0,0.0003452,8]
[360008387,1746477074824,-400.0,0.0003452,8]
[360008388,1746477074833,-491.06,0.0003452,8]
[360008389,1746477074843,-400.0,0.0003452,8]
[360008390,1746477074852,-749.47,0.0003452,8]
[360008391,1746477074865,-417.03,0.0003452,8]
[360008392,1746477074876,-1603.07,0.0003452,8]
[360008393,1746477074886,-167.31317069,0.0003452,8]
[360008394,1746477074899,-400.0,0.0003452,8]
[360008395,1746477074909,-400.0,0.0003452,8]
[360008396,1746477074919,-1004.78,0.0003452,8]
[360008397,1746477074928,-441.29,0.0003452,8]
[360008398,1746477074939,-400.0,0.0003452,8]
[360008399,1746477074949,-1250.72,0.0003452,8]
[360008400,1746477074959,-400.0,0.0003452,8]
[360008401,1746477074969,-535.58,0.0003452,8]
[360008402,1746477074979,-400.0,0.0003452,8]
[360008403,1746477074990,-941.65,0.0003452,8]
[360008404,1746477075000,-553.65,0.0003452,8]
[360008405,1746477075009,-992.75,0.0003452,8]
[360008406,1746477075018,-400.0,0.0003452,8]
[360008407,1746477075027,-400.0,0.0003452,8]
[360008408,1746477075037,-400.0,0.0003452,8]
[360008409,1746477075046,-1225.91,0.0003452,8]
[360008410,1746477075056,-400.0,0.0003452,8]
[360008411,1746477075065,-400.0,0.0003452,8]
[360008412,1746477075075,-407.11,0.0003452,8]
[360008413,1746477075084,-400.0,0.0003452,8]
[360008414,1746477075094,-400.0,0.0003452,8]
[360008415,1746477075104,-400.0,0.0003452,8]
[360008416,1746477075113,-3599.95,0.0003452,8]
[360008417,1746477075122,-2897.28,0.0003452,8]
[360008418,1746477075131,-481.35,0.0003452,8]
[360008419,1746477075140,-2205.69,0.0003452,8]
[360008420,1746477075150,-3492.57,0.0003452,8]
[360008421,1746477075159,-2970.08,0.0003452,8]
[360008422,1746477075168,-819.48,0.0003452,8]
[360008423,1746477075178,-1931.64,0.0003452,8]
[360008424,1746477075188,-400.0,0.0003452,8]
[360008425,1746477075198,-400.0,0.0003452,8]
[360008426,1746477075207,-400.0,0.0003452,8]
[360008427,1746477075219,-400.0,0.0003452,8]
[360008428,1746477075229,-438.54,0.0003452,8]
[360008429,1746477075239,-1111.28,0.0003452,8]
[360008430,1746477075249,-884.25,0.0003452,8]
[360008431,1746477075259,-400.0,0.0003452,8]
[360008432,1746477075269,-427.08363811,0.0003452,8]
[360008433,1746477075278,-400.0,0.0003452,8]
[360008434,1746477075287,-400.0,0.0003452,8]
[360008435,1746477075297,-3000.85,0.0003452,8]
[360008436,1746477075306,-136.22157917,0.0003452,8]
[360008440,1746477296271,-193.96551507,0.00019829,2]
[360008441,1746477359815,-56.03448493,0.00019829,2]
[360008442,1746477360989,262.96551507,0.0001963,2]
[360008443,1746477361836,-152.0,0.0001963,2]
[360008444,1746477365833,-808.16768678,0.0001963,2]
[360008445,1746477377436,-325.75794598,0.0001963,2]
[360008446,1746477380468,-815.86601239,0.0001963,2]
[360008447,1746477436299,244.0,0.00018101,2]
[360008448,1746477436321,71.5,0.00018101,2]
[360008451,1746477559123,-300.0,0.00020109,2]
[360008452,1746477559145,-4864.0,0.0002011,2]
[360008454,1746477629631,-1000.0,0.00020109,2]
[360008457,1746477716416,-712.5799948,0.00019746,2]
[360008458,1746477770707,-181.55399281,0.00019746,2]
[360008462,1746477965704,1000.0,0.00018101,2]
[360008463,1746478035094,-35.59553619,0.00019746,2]
[360008464,1746478035115,-151.3789105,0.0002,2]
[360008465,1746478035137,-500.0,0.00020106,2]
[360008466,1746478035168,-500.0,0.00020106,2]
[360008467,1746478035190,-500.0,0.00020106,2]
[360008468,1746478035220,-500.0,0.00020106,2]
[360008469,1746478035239,-176.38892463,0.00020106,2]
[360008470,1746478035261,-240.91366912,0.00020106,2]
[360008471,1746478035289,-178.08709886,0.00020106,2]
[360008472,1746478162095,-467.17393026,0.0002001,2]
[360008473,1746478162118,-300.0,0.00020104,2]
[360008474,1746478162143,-500.0,0.00020105,2]
[360008475,1746478162173,-500.0,0.00020105,2]
[360008476,1746478162198,-500.0,0.00020105,2]
[360008477,1746478162229,-500.0,0.00020105,2]
[360008478,1746478162251,-500.0,0.00020105,2]
[360008479,1746478162280,-500.0,0.00020105,2]
[360008480,1746478162310,-500.0,0.00020105,2]
[360008481,1746478162332,-574.09136692,0.00020105,2]
[360008482,1746478162360,-500.0,0.00020105,2]
[360008483,1746478162388,-500.0,0.00020105,2]
[360008484,1746478162416,-35.49379724,0.00020105,2]
[360008485,1746478169087,-275.34304638,0.00020005,2]
[360008486,1746478169118,-464.50620276,0.00020105,2]
[360008487,1746478169146,-500.0,0.00020105,2]
[360008488,1746478169173,-500.0,0.00020105,2]
[360008489,1746478169200,-500.0,0.00020105,2]
[360008490,1746478169228,-500.0,0.00020105,2]
[360008491,1746478169255,-500.0,0.00020105,2]
[360008492,1746478169283,-500.0,0.00020105,2]
[360008493,1746478169309,-500.0,0.00020105,2]
[360008494,1746478169335,-500.0,0.00020105,2]
[360008495,1746478169361,-500.0,0.00020105,2]
[360008496,1746478169387,-500.0,0.00020105,2]
[360008497,1746478169412,-500.0,0.00020105,2]
[360008498,1746478169438,-500.0,0.00020105,2]
[360008499,1746478169463,-500.0,0.00020105,2]
[360008500,1746478169489,-500.0,0.00020105,2]
[360008501,1746478169515,-500.0,0.00020105,2]
[360008502,1746478169541,-500.0,0.00020105,2]
[360008503,1746478169567,-500.0,0.00020105,2]
[360008504,1746478169592,-500.0,0.00020105,2]
[360008505,1746478169618,-500.0,0.00020105,2]
[360008506,1746478169644,-500.0,0.00020105,2]
[360008507,1746478169671,-500.0,0.00020105,2]
[360008508,1746478169699,-500.0,0.00020105,2]
[360008509,1746478169726,-500.0,0.00020105,2]
[360008510,1746478169752,-476.71427561,0.00020105,2]
[360008511,1746478171084,-23.28572439,0.00020105,2]
[360008512,1746478171111,-500.0,0.00020105,2]
[360008513,1746478171138,-530.99407231,0.00020105,2]
[360008514,1746478171165,-500.0,0.00020105,2]
[360008515,1746478171192,-500.0,0.00020105,2]
[360008516,1746478171219,-500.0,0.00020105,2]
[360008517,1746478171248,-500.0,0.00020105,2]
[360008518,1746478171276,-500.0,0.00020105,2]
[360008519,1746478171303,-500.0,0.00020105,2]
[360008520,1746478171328,-500.0,0.00020105,2]
[360008521,1746478171356,-500.0,0.00020105,2]
[360008522,1746478171385,-500.0,0.00020105,2]
[360008523,1746478171414,-500.0,0.00020105,2]
[360008524,1746478171442,-500.0,0.00020105,2]
[360008525,1746478171470,-500.0,0.00020105,2]
[360008526,1746478171710,-500.0,0.00020105,2]
[360008527,1746478171741,-500.0,0.00020105,2]
[360008528,1746478171770,-500.0,0.00020105,2]
[360008529,1746478171798,-500.0,0.00020105,2]
[360008530,1746478171826,-500.0,0.00020105,2]
[360008531,1746478171854,-500.0,0.00020105,2]
[360008532,1746478171880,-500.0,0.00020105,2]
[360008533,1746478171906,-500.0,0.00020105,2]
[360008534,1746478171935,-500.0,0.00020105,2]
[360008535,1746478171969,-500.0,0.00020105,2]
[360008536,1746478171998,-500.0,0.00020105,2]
[360008537,1746478172026,-500.0,0.00020105,2]
[360008538,1746478172053,-500.0,0.00020105,2]
[360008539,1746478172078,-500.0,0.00020105,2]
[360008540,1746478172105,-500.0,0.00020105,2]
[360008541,1746478172289,-500.0,0.00020105,2]
[360008542,1746478172318,-500.0,0.00020105,2]
[360008543,1746478172344,-297.47147899,0.00020105,2]
[360008544,1746478172370,-500.0,0.00020105,2]
[360008545,1746478172395,-500.0,0.00020105,2]
[360008546,1746478172421,-500.0,0.00020105,2]
[360008547,1746478172447,-500.0,0.00020105,2]
[360008548,1746478172473,-500.0,0.00020105,2]
[360008549,1746478172497,-500.0,0.00020105,2]
[360008550,1746478172523,-500.0,0.00020105,2]
[360008551,1746478172548,-500.0,0.00020105,2]
[360008552,1746478172575,-500.0,0.00020105,2]
[360008553,1746478172604,-500.0,0.00020105,2]
[360008554,1746478172629,-500.0,0.00020105,2]
[360008555,1746478172656,-500.0,0.00020105,2]
[360008556,1746478172683,-500.0,0.00020105,2]
[360008557,1746478172709,-500.0,0.00020105,2]
[360008558,1746478172736,-500.0,0.00020105,2]
[360008559,1746478172762,-500.0,0.00020105,2]
[360008560,1746478172789,-500.0,0.00020105,2]
[360008561,1746478172817,-500.0,0.00020105,2]
[360008562,1746478172844,-500.0,0.00020105,2]
[360008563,1746478172871,-500.0,0.00020105,2]
[360008564,1746478172899,-500.0,0.00020105,2]
[360008565,1746478172925,-600.0,0.00020105,2]
[360008566,1746478172950,-500.0,0.00020105,2]
[360008567,1746478172973,-331.98719248,0.00020105,2]
[360008568,1746478172995,-500.0,0.00020105,2]
[360008569,1746478173014,-297.38311284,0.00020105,2]
[360008570,1746478173037,-200.0,0.00020106,2]
[360008571,1746478173058,-300.0,0.00020106,2]
[360008572,1746478173079,-14413.38443899,0.00020106,2]
[360008573,1746478173171,-21332.91485027,0.00020106,2]
[360008574,1746478173191,-15965.6557452,0.0002011,2]
[360008603,1746478231895,-150.0,0.000189,2]
[360008605,1746478231905,-592.05876045,0.00019,2]
[360008607,1746478231915,-623.51609255,0.00020105,2]
[360008609,1746478231925,-300.0,0.00020109,2]
[360008611,1746478231934,-294.0,0.00020109,2]
[360008613,1746478231944,-2165.13358243,0.0002011,2]
[360008615,1746478231959,-1905.21067237,0.0002011,2]
[360008617,1746478231969,-1181.278938,0.0002011,2]
[360008619,1746478231979,-39194.88667162,0.0002011,2]
[360008669,1746478238022,-208.16817899,0.00020109,2]
[360008670,1746478238035,-500.0,0.00020109,2]
[360008671,1746478238045,-432.39103474,0.00020109,2]
[360008672,1746478238054,-230.45459632,0.00020109,2]
[360008673,1746478238064,-500.0,0.00020109,2]
[360008674,1746478238073,-339.7471479,0.00020109,2]
[360008675,1746478238084,-500.0,0.00020109,2]
[360008676,1746478238093,-500.0,0.00020109,2]
[360008677,1746478238103,-500.0,0.00020109,2]
[360008678,1746478238112,-500.0,0.00020109,2]
[360008679,1746478238122,-500.0,0.00020109,2]